bitfinex/quotes_SOLUSD_20251128
["timestamp","ask_amount","ask_price","bid_price","bid_amount"]
[1764320292586,0.71,141.34,141.31,12.20870663]
[1764320292764,0.71,141.34,141.32,5.13224255]
[1764320293090,0.71,141.34,141.31,7.07646408]
[1764320293663,0.2,141.35,141.31,7.07646408]
[1764320293871,0.86,141.35,141.31,7.07646408]
[1764320294361,0.66,141.34,141.3,7.07714083]
[1764320294566,0.66,141.34,141.3,24.76999291]
[1764320294992,0.66,141.34,141.31,5.13224255]
[1764320295293,0.66,141.34,141.3,7.07714083]
[1764320295480,0.66,141.34,141.31,5.13224255]
[1764320296489,0.66,141.34,141.32,7.07613925]
[1764320297890,0.66,141.34,141.31,5.13224255]
[1764320298691,5.41656569,141.33,141.28,21.44110655]
[1764320298876,5.41656569,141.33,141.27,5.13224255]
[1764320299192,0.66,141.32,141.29,5.13224255]
[1764320299579,0.66,141.32,141.29,12.20959678]
[1764320300993,0.66,141.32,141.29,7.07735423]
[1764320301195,0.66,141.32,141.29,12.20959678]
[1764320301773,0.66,141.32,141.27,24.77458612]
[1764320301969,0.66,141.34,141.28,0.2]
[1764320302199,0.66,141.33,141.27,24.77458612]
[1764320302399,4.30432314,141.35,141.31,5.13224255]
[1764320302586,11.37898525,141.35,141.31,5.13224255]
[1764320302901,0.66,141.34,141.31,5.13224255]
[1764320303079,0.66,141.34,141.3,5.13224255]
[1764320303694,0.66,141.34,141.31,7.07664001]
[1764320304414,10.71898525,141.35,141.31,7.07664001]
[1764320304415,0.2,141.35,141.33,5.13224255]
[1764320304610,0.86,141.35,141.33,5.13224255]
[1764320305679,0.86,141.35,141.34,12.20738051]
[1764320305680,0.2,141.35,141.34,12.20738051]
[1764320305893,0.2,141.35,141.34,7.07513796]
[1764320306405,0.86,141.35,141.33,5.13224255]
[1764320306594,0.86,141.35,141.32,7.07584965]
[1764320306792,0.86,141.35,141.33,5.13224255]
[1764320307094,0.2,141.35,141.32,24.96619779]
[1764320307298,0.2,141.35,141.32,12.2080922]
[1764320307678,0.2,141.35,141.32,7.07584965]
[1764320307679,0.86,141.35,141.32,7.07584965]
[1764320307985,0.2,141.35,141.32,12.2080922]
[1764320308206,0.66,141.34,141.32,7.07584965]
[1764320308502,0.66,141.34,141.32,12.2080922]
[1764320308688,0.66,141.34,141.32,9.23055282]
[1764320309410,0.66,141.34,141.31,7.07642007]
[1764320311683,7.73527973,141.34,141.29,23.38632407]
[1764320311885,0.66,141.34,141.29,43.23513156]
[1764320312084,0.66,141.33,141.29,43.23513156]
[1764320312303,0.66,141.33,141.29,41.08042839]
[1764320312579,0.66,141.33,141.29,23.38632407]
[1764320313210,0.2,141.35,141.29,41.08042839]
[1764320313433,4.02,141.35,141.32,2.15470317]
[1764320313723,0.2,141.35,141.33,9.22989626]
[1764320313919,0.2,141.35,141.34,2.15470317]
[1764320314822,0.2,141.35,141.34,2.35470317]
[1764320315907,0.2,141.35,141.34,18.23978605]
[1764320316523,0.2,141.35,141.34,18.03978605]
[1764320316818,0.2,141.35,141.34,18.23978605]
[1764320318424,0.2,141.35,141.34,9.22984113]
[1764320318814,0.86,141.35,141.34,7.07513796]
[1764320319024,0.2,141.35,141.34,9.22984113]
[1764320319526,0.86,141.35,141.34,9.22984113]
[1764320320025,0.2,141.35,141.34,9.22984113]
[1764320321826,0.89,141.35,141.32,16.308864]
[1764320322130,0.89,141.35,141.32,41.07521302]
[1764320322315,0.89,141.35,141.34,2.15470317]
[1764320323228,0.2,141.35,141.34,9.22984113]
[1764320323644,0.2,141.35,141.34,9.42984113]
[1764320323809,0.2,141.35,141.34,18.23978605]
[1764320325034,0.2,141.35,141.34,18.03978605]
[1764320325219,0.2,141.35,141.34,9.22984113]
[1764320326428,0.2,141.35,141.33,2.15470317]
[1764320326429,0.89,141.35,141.33,2.15470317]
[1764320326612,0.89,141.35,141.33,9.23005712]
[1764320326812,0.2,141.35,141.34,2.15470317]
[1764320327134,0.2,141.35,141.33,7.27535395]
[1764320327328,0.2,141.35,141.34,2.15470317]
[1764320328133,0.2,141.35,141.34,18.46356717]
[1764320328310,0.2,141.35,141.34,25.53870513]
[1764320331414,1e-08,141.35,141.34,34.54865005]
[1764320331628,0.69,141.41,141.34,87.61218478]
[1764320331819,0.69,141.43,141.4,2.15470317]
[1764320332022,0.69,141.43,141.42,2.15470317]
[1764320332825,0.69,141.43,141.4,18.46356717]
[1764320333224,0.69,141.43,141.39,2.15470317]
[1764320333523,0.69,141.43,141.4,7.07213578]
[1764320333719,0.69,141.43,141.4,9.22683895]
[1764320334116,7.76076152,141.43,141.38,7.07305527]
[1764320334433,7.76076152,141.43,141.38,9.22775844]
[1764320334735,0.69,141.42,141.38,10.43692335]
[1764320335116,0.69,141.42,141.38,7.07305527]
[1764320335440,0.69,141.42,141.38,10.43692335]
[1764320335836,0.69,141.42,141.39,3.36386808]
[1764320337642,0.69,141.42,141.38,17.68237173]
[1764320337936,0.69,141.42,141.4,3.36386808]
[1764320338318,0.69,141.42,141.38,7.07313622]
[1764320338528,0.69,141.42,141.38,10.4370043]
[1764320338719,0.69,141.42,141.39,3.36386808]
[1764320339038,0.69,141.42,141.38,23.38200022]
[1764320339342,0.69,141.42,141.39,3.36386808]
[1764320339535,0.69,141.42,141.41,10.43550374]
[1764320339713,0.69,141.42,141.41,7.07163566]
[1764320340326,0.69,141.42,141.41,10.43550374]
[1764320340520,0.69,141.45,141.41,10.43550374]
[1764320340726,0.69,141.44,141.41,7.07163566]
[1764320340931,0.69,141.44,141.43,3.36386808]
[1764320341133,0.69,141.45,141.43,3.36386808]
[1764320341329,0.69,141.45,141.41,24.75072483]
[1764320341547,0.69,141.45,141.41,17.67908917]
[1764320341728,0.69,141.45,141.42,3.36386808]
[1764320342534,0.14216157,141.44,141.41,3.36386808]
[1764320342738,0.28432314,141.42,141.37,7.07343395]
[1764320343041,0.28432314,141.42,141.37,10.43730203]
[1764320343249,0.69,141.41,141.38,19.67273208]
[1764320343545,0.69,141.41,141.37,3.36386808]
[1764320343546,7.76197728,141.41,141.37,3.36386808]
[1764320343735,7.76197728,141.41,141.36,10.43791161]
[1764320343926,0.69,141.4,141.36,10.43791161]
[1764320344127,4.33819122,141.4,141.31,44.19256781]
[1764320344334,4.33819122,141.4,141.34,3.36386808]
[1764320344622,0.69,141.39,141.34,19.67273208]
[1764320345040,4.05386808,141.39,141.34,3.36386808]
[1764320345242,11.12654159,141.39,141.35,7.07463742]
[1764320345544,0.97432314,141.38,141.34,7.07500112]
[1764320345842,4.33819122,141.38,141.33,3.36386808]
[1764320346044,0.69,141.37,141.34,3.36386808]
[1764320346233,0.69,141.37,141.35,3.36386808]
[1764320346749,0.69,141.37,141.32,41.07505448]
[1764320346944,0.69,141.37,141.34,8.92916038]
[1764320347357,0.69,141.37,141.35,7.07463742]
[1764320347655,0.69,141.37,141.35,16.0037978]
[1764320348031,0.28432314,141.39,141.36,8.92916038]
[1764320348245,0.97432314,141.39,141.36,8.92916038]
[1764320348647,0.69,141.38,141.36,8.92916038]
[1764320348849,0.69,141.38,141.35,16.0037978]
[1764320349528,0.69,141.38,141.35,7.07463742]
[1764320350831,9.21348352,141.37,141.32,23.38485329]
[1764320351370,0.71,141.36,141.32,32.31401367]
[1764320351866,0.99432314,141.37,141.34,8.92916038]
[1764320352173,0.71,141.37,141.34,8.92916038]
[1764320352463,0.71,141.36,141.32,8.92916038]
[1764320352967,0.71,141.36,141.33,7.07563857]
[1764320354150,0.71,141.36,141.32,16.00518569]
[1764320354354,0.71,141.36,141.32,7.07602531]
[1764320354866,0.71,141.36,141.31,26.62034166]
[1764320355355,9.63916038,141.36,141.31,26.62034166]
[1764320355550,8.92916038,141.35,141.3,16.00630121]
[1764320355864,9.61916038,141.35,141.3,16.00630121]
[1764320356062,0.69,141.34,141.3,16.00630121]
[1764320356455,0.69,141.34,141.3,8.92916038]
[1764320356969,0.69,141.34,141.3,7.0770556]
[1764320357354,7.76524675,141.34,141.3,7.0770556]
[1764320357550,0.69,141.34,141.3,7.0770556]
[1764320357756,0.69,141.33,141.3,7.0770556]
[1764320359571,0.69,141.33,141.3,16.00621598]
[1764320360759,0.69,141.33,141.3,7.0770556]
[1764320361058,0.69,141.33,141.3,33.69906806]
[1764320363056,0.69,141.33,141.3,7.0770556]
[1764320363668,0.69,141.33,141.3,16.00621598]
[1764320364469,0.69,141.33,141.3,7.0770556]
[1764320364769,0.69,141.33,141.3,16.00621598]
[1764320365267,0.69,141.33,141.3,33.69906806]
[1764320365571,3.16,141.34,141.3,33.89906806]
[1764320365756,3.16,141.34,141.3,24.76990768]
[1764320365944,0.69,141.33,141.3,33.69906806]
[1764320366148,3.16,141.34,141.32,7.07613925]
[1764320366344,0.69,141.33,141.32,7.07613925]
[1764320367145,3.16,141.34,141.32,7.07613925]
[1764320367468,0.69,141.37,141.33,8.92916038]
[1764320367775,21.37156959,141.44,141.36,8.92916038]
[1764320367949,0.69,141.41,141.38,8.92916038]
[1764320368277,0.2,141.47,141.41,23.38049966]
[1764320368473,3.85,141.46,141.42,8.92916038]
[1764320368649,3.85,141.46,141.42,3.3617743]
[1764320368855,0.97432314,141.45,141.41,23.38049966]
[1764320369166,0.69,141.45,141.41,26.74227396]
[1764320369371,3.16,141.46,141.41,26.74227396]
[1764320369372,0.69,141.44,141.41,26.74227396]
[1764320369766,0.69,141.44,141.41,23.38049966]
[1764320369965,0.69,141.44,141.43,3.3617743]
[1764320370161,0.69,141.44,141.42,3.3617743]
[1764320370362,0.69,141.44,141.43,7.07063565]
[1764320370578,0.69,141.46,141.43,15.99033094]
[1764320370776,0.69,141.45,141.43,15.99033094]
[1764320371354,0.69,141.45,141.43,7.07063565]
[1764320371654,0.69,141.45,141.43,15.99033094]
[1764320371864,0.69,141.45,141.43,8.91969529]
[1764320372071,0.69,141.45,141.41,25.22855929]
[1764320372263,0.69,141.45,141.42,8.91969529]
[1764320372469,0.69,141.45,141.43,7.07063565]
[1764320372778,0.69,141.45,141.42,8.91969529]
[1764320373078,0.69,141.45,141.43,8.91969529]
[1764320373456,9.60969529,141.45,141.37,9.00994492]
[1764320373658,0.28432314,141.44,141.39,8.91969529]
[1764320373979,0.97432314,141.44,141.4,8.91969529]
[1764320374373,0.97432314,141.44,141.38,41.06418747]
[1764320374566,0.69,141.43,141.41,8.91969529]
[1764320374770,0.69,141.43,141.4,8.91969529]
[1764320375077,0.69,141.43,141.38,23.58200022]
[1764320375256,0.69,141.43,141.4,8.91969529]
[1764320376687,0.69,141.43,141.41,7.07163566]
[1764320376881,0.69,141.43,141.39,7.07235543]
[1764320377283,0.69,141.43,141.39,15.99205072]
[1764320382372,0.69,141.43,141.4,8.91969529]
[1764320382578,3.85,141.43,141.41,8.91969529]
[1764320383099,3.16,141.43,141.42,8.91969529]
[1764320383400,3.16,141.43,141.42,15.99083091]
[1764320383905,3.16,141.43,141.41,15.99116169]
[1764320383906,3.82,141.43,141.41,15.99116169]
[1764320384203,3.82,141.46,141.42,8.91969529]
[1764320384426,3.82,141.46,141.43,8.91969529]
[1764320384576,3.82,141.46,141.44,8.91969529]
[1764320384885,0.66,141.45,141.42,8.91969529]
[1764320385276,0.66,141.45,141.41,7.0714664]
[1764320385579,0.66,141.45,141.42,7.070662]
[1764320385773,0.66,141.45,141.41,15.99111326]
[1764320386212,0.66,141.45,141.41,7.07141797]
[1764320386503,0.66,141.45,141.42,8.91969529]
[1764320387200,3.64432314,141.47,141.44,8.91969529]
[1764320387408,0.66,141.45,141.43,8.91969529]
[1764320387714,0.66,141.45,141.44,7.07013574]
[1764320388539,0.66,141.45,141.43,7.07058628]
[1764320388698,4.30432314,141.47,141.44,8.91969529]
[1764320388893,4.30432314,141.47,141.43,7.07058628]
[1764320388894,0.66,141.46,141.43,15.99028157]
[1764320389297,0.66,141.46,141.44,8.91969529]
[1764320389530,0.66,141.46,141.43,15.99028157]
[1764320390418,0.66,141.46,141.43,7.07058628]
[1764320393224,11.0913132,141.46,141.38,21.04236558]
[1764320393520,0.28432314,141.44,141.39,19.67085635]
[1764320393724,0.28432314,141.44,141.38,17.68236558]
[1764320393725,3.16,141.43,141.4,3.36199235]
[1764320393921,3.82,141.43,141.4,3.36199235]
[1764320394103,3.82,141.43,141.4,10.43365883]
[1764320394310,3.82,141.45,141.42,3.36199235]
[1764320394608,3.82,141.45,141.42,2.15154057]
[1764320395008,0.66,141.45,141.42,2.15154057]
[1764320395207,3.82,141.46,141.43,2.15154057]
[1764320395413,0.48432314,141.47,141.44,2.15154057]
[1764320395414,3.36,141.47,141.44,2.15154057]
[1764320395711,0.2,141.47,141.46,2.15154057]
[1764320396018,0.2,141.47,141.46,9.22067672]
[1764320396421,0.2,141.47,141.45,7.06953672]
[1764320396720,0.86,141.47,141.45,7.06953672]
[1764320396914,0.2,141.47,141.46,18.46040457]
[1764320397304,0.2,141.47,141.46,18.66040457]
[1764320397718,0.2,141.47,141.46,29.62189006]
[1764320397924,0.2,141.5,141.48,7.06813683]
[1764320398123,0.2,141.52,141.51,18.46040457]
[1764320399102,0.2,141.52,141.51,27.27034949]
[1764320399309,1e-08,141.52,141.51,27.27034949]
[1764320399711,3.16,141.59,141.51,25.11880892]
[1764320399921,3.16,141.59,141.57,9.21518399]
[1764320400130,3.16,141.59,141.57,7.06364342]
[1764320400310,3.16,141.59,141.53,8.80994492]
[1764320400311,0.66,141.58,141.53,16.308864]
[1764320400527,0.66,141.58,141.54,2.14827598]
[1764320400828,0.66,141.6,141.54,8.80994492]
[1764320401000,0.66,141.6,141.54,17.40304884]
[1764320401205,0.2,141.61,141.59,2.14827598]
[1764320401523,0.2,141.61,141.58,8.80994492]
[1764320401701,0.2,141.61,141.6,18.45713998]
[1764320402027,0.2,141.61,141.6,25.51928687]
[1764320402529,0.2,141.61,141.6,34.32923179]
[1764320402719,0.2,141.61,141.6,2.14827598]
[1764320403303,0.2,141.61,141.6,4.29655196]
[1764320403506,0.2,141.61,141.6,2.14827598]
[1764320403728,0.2,141.61,141.54,8.59310392]
[1764320403911,0.2,141.61,141.6,2.14827598]
[1764320404230,0.2,141.61,141.6,9.21042287]
[1764320404414,0.2,141.61,141.6,2.14827598]
[1764320404734,0.86,141.61,141.52,35.32920777]
[1764320404949,0.86,141.61,141.58,5.10917505]
[1764320405111,0.86,141.61,141.53,36.69854326]
[1764320405112,0.86,141.61,141.59,5.10917505]
[1764320405319,0.86,141.61,141.56,19.468864]
[1764320405530,0.86,141.61,141.59,5.10917505]
[1764320405739,0.2,141.61,141.6,5.10917505]
[1764320405931,0.2,141.61,141.58,21.41803905]
[1764320406441,0.86,141.61,141.59,5.10917505]
[1764320406811,0.2,141.61,141.6,10.2183501]
[1764320407038,0.2,141.61,141.6,35.33715902]
[1764320407609,0.2,141.61,141.6,21.41803905]
[1764320407818,0.2,141.61,141.6,35.33715902]
[1764320408020,0.2,141.61,141.6,42.39930591]
[1764320408637,0.2,141.61,141.6,15.87209181]
[1764320408940,0.2,141.61,141.6,29.25044191]
[1764320409542,0.66,141.67,141.65,5.10917505]
[1764320409751,3.82,141.71,141.66,5.10917505]
[1764320409911,0.80216157,141.7,141.64,16.308864]
[1764320410122,0.80216157,141.7,141.65,5.10917505]
[1764320410449,0.80216157,141.7,141.64,23.36884884]
[1764320410450,0.94432314,141.7,141.64,23.36884884]
[1764320410752,13.11083233,141.7,141.64,5.10917505]
[1764320411050,0.68,141.69,141.64,5.10917505]
[1764320411350,0.68,141.69,141.65,5.10917505]
[1764320411646,0.68,141.69,141.64,5.10917505]
[1764320411859,0.68,141.69,141.63,5.10917505]
[1764320412064,0.28432314,141.68,141.64,5.10917505]
[1764320412462,0.68,141.67,141.64,5.10917505]
[1764320412625,0.68,141.68,141.65,5.10917505]
[1764320412829,0.68,141.68,141.66,5.10917505]
[1764320413264,0.68,141.68,141.63,23.36939079]
[1764320413765,0.68,141.68,141.63,16.308864]
[1764320413958,0.28432314,141.67,141.61,7.06149822]
[1764320414258,0.68,141.68,141.62,7.06086917]
[1764320414557,0.69,141.67,141.58,8.80994492]
[1764320414788,0.28432314,141.66,141.61,5.10917505]
[1764320414969,0.28432314,141.66,141.58,8.80994492]
[1764320415145,5.10917505,141.63,141.57,5.10917505]
[1764320415457,0.69,141.62,141.57,16.308864]
[1764320415762,0.69,141.62,141.54,8.80994492]
[1764320415964,0.69,141.62,141.58,5.10917505]
[1764320416260,0.69,141.62,141.59,5.10917505]
[1764320416446,0.69,141.62,141.6,5.10917505]
[1764320416751,0.69,141.62,141.58,24.72073533]
[1764320416752,0.69,141.64,141.61,5.10917505]
[1764320417885,0.69,141.64,141.6,5.10917505]
[1764320418163,5.10917505,141.63,141.57,28.48150102]
[1764320418365,5.79917505,141.64,141.58,5.10917505]
[1764320418569,0.28432314,141.64,141.6,5.10917505]
[1764320418774,0.69,141.63,141.6,5.10917505]
[1764320419074,0.69,141.63,141.57,46.14060958]
[1764320419385,0.69,141.63,141.59,5.10917505]
[1764320419552,0.69,141.63,141.57,41.03143453]
[1764320419751,5.39349819,141.62,141.49,21.23958974]
[1764320419952,5.10917505,141.59,141.51,8.80994492]
[1764320420154,5.10917505,141.59,141.54,8.80994492]
[1764320420351,0.69,141.58,141.53,8.80994492]
[1764320420576,5.10917505,141.56,141.5,12.17631285]
[1764320420944,0.69,141.55,141.5,12.17631285]
[1764320421375,0.69,141.55,141.5,7.0671378]
[1764320421848,5.79917505,141.55,141.5,7.0671378]
[1764320422046,5.39349819,141.54,141.49,7.06750482]
[1764320422240,5.39349819,141.54,141.48,5.10917505]
[1764320422241,6.08349819,141.54,141.48,12.17720675]
[1764320422468,5.10917505,141.52,141.47,7.06846756]
[1764320422667,5.10917505,141.51,141.46,16.308864]
[1764320422849,0.69,141.52,141.47,5.10917505]
[1764320423449,0.69,141.52,141.46,5.10917505]
[1764320423450,5.79917505,141.52,141.46,5.10917505]
[1764320423691,5.10917505,141.51,141.46,7.06913615]
[1764320423851,0.69,141.5,141.46,7.06913615]
[1764320424173,0.69,141.5,141.46,23.37800015]
[1764320424846,0.69,141.5,141.46,7.06913615]
[1764320425047,5.39349819,141.48,141.38,35.36418901]
[1764320425260,5.39349819,141.48,141.39,3.14]
[1764320425462,0.69,141.47,141.42,21.41803905]
[1764320425655,0.69,141.47,141.41,5.10917505]
[1764320425854,0.69,141.47,141.41,7.07163566]
[1764320426052,0.69,141.47,141.42,5.10917505]
[1764320426550,0.97432314,141.49,141.42,8.80994492]
[1764320426755,5.10917505,141.46,141.41,16.308864]
[1764320427161,0.69,141.45,141.41,16.308864]
[1764320427474,0.69,141.45,141.41,21.41803905]
[1764320427851,0.69,141.48,141.43,8.80994492]
[1764320428046,5.79917505,141.48,141.42,24.74897468]
[1764320428258,5.79917505,141.48,141.42,12.18031067]
[1764320428472,5.79917505,141.47,141.42,7.07113562]
[1764320428774,0.69,141.47,141.42,12.18031067]
[1764320428965,0.69,141.46,141.42,12.18031067]
[1764320429267,0.69,141.46,141.42,29.85814973]
[1764320430251,0.69,141.46,141.42,7.07113562]
[1764320430453,5.79917505,141.46,141.42,7.07113562]
[1764320430692,1.99999999,141.55,141.42,7.07113562]
[1764320430693,2.68999999,141.73,141.47,11.5983501]
[1764320430895,0.2,141.81,141.68,5.10917505]
[1764320430896,1.0,141.75,141.68,5.10917505]
[1764320431055,2.01,141.74,141.64,8.80994492]
[1764320431380,0.69,141.74,141.67,16.308864]
[1764320431561,0.69,141.73,141.69,5.10917505]
[1764320431879,0.69,141.73,141.7,5.10917505]
[1764320432081,0.69,141.73,141.58,1.99999999]
[1764320432253,3.18,141.72,141.68,5.10917505]
[1764320432447,3.18,141.71,141.64,16.308864]
[1764320432653,5.10917505,141.7,141.64,5.10917505]
[1764320432854,5.94133662,141.7,141.64,5.10917505]
[1764320433069,0.69,141.69,141.64,5.10917505]
[1764320433371,0.83216157,141.69,141.65,5.10917505]
[1764320433574,0.69,141.69,141.66,5.10917505]
[1764320433774,3.18,141.68,141.66,5.10917505]
[1764320433967,0.69,141.69,141.67,5.10917505]
[1764320434159,3.32216157,141.68,141.67,5.10917505]
[1764320434359,3.46432314,141.68,141.67,5.10917505]
[1764320434561,3.46432314,141.68,141.66,12.1679971]
[1764320434966,0.28432314,141.67,141.63,16.308864]
[1764320435166,0.28432314,141.67,141.63,21.41803905]
[1764320435354,0.28432314,141.67,141.65,5.10917505]
[1764320435554,3.46432314,141.66,141.65,5.10917505]
[1764320436074,4.15432314,141.66,141.64,5.10917505]
[1764320436267,3.46432314,141.66,141.64,7.05998358]
[1764320436801,3.46432314,141.66,141.59,35.99322833]
[1764320436802,0.97432314,141.65,141.56,7.06414241]
[1764320437090,0.97432314,141.65,141.56,25.40449844]
[1764320437257,28.32854062,141.68,141.62,5.10917505]
[1764320437258,0.28432314,141.63,141.62,5.10917505]
[1764320437765,4.15432314,141.63,141.62,5.10917505]
[1764320438270,4.15432314,141.63,141.59,16.308864]
[1764320438271,4.15432314,141.63,141.59,23.37147815]
[1764320438482,0.69,141.62,141.59,23.37147815]
[1764320438680,3.87,141.62,141.59,41.02809231]
[1764320438884,0.69,141.62,141.59,41.02809231]
[1764320439062,3.18,141.61,141.59,41.02809231]
[1764320439965,3.18,141.61,141.6,5.10917505]
[1764320440275,3.18,141.61,141.59,41.02809231]
[1764320440481,3.18,141.61,141.53,35.32765618]
[1764320440482,0.97432314,141.6,141.53,35.32765618]
[1764320440661,0.97432314,141.6,141.57,5.10917505]
[1764320440860,0.71,141.59,141.57,5.10917505]
[1764320441261,0.71,141.59,141.53,35.32765618]
[1764320441472,0.71,141.59,141.57,5.10917505]
[1764320441783,3.18,141.58,141.55,5.10917505]
[1764320441984,3.89,141.58,141.56,5.10917505]
[1764320442287,0.71,141.57,141.55,5.10917505]
[1764320442463,0.71,141.57,141.54,41.03601957]
[1764320442464,3.18,141.56,141.54,41.03601957]
[1764320442669,0.99432314,141.6,141.55,5.10917505]
[1764320442865,3.18,141.59,141.58,5.10917505]
[1764320443068,3.89,141.59,141.58,5.10917505]
[1764320443266,3.89,141.59,141.54,41.03601957]
[1764320443463,0.71,141.58,141.54,41.03601957]
[1764320443657,0.71,141.58,141.56,5.10917505]
[1764320443658,0.99432314,141.58,141.56,5.10917505]
[1764320443864,3.18,141.57,141.54,41.03601957]
[1764320444070,3.89,141.57,141.55,5.10917505]
[1764320444256,3.89,141.57,141.56,7.06414241]
[1764320444672,4.17432314,141.57,141.56,7.06414241]
[1764320445768,0.28432314,141.56,141.52,17.66527867]
[1764320446094,0.28432314,141.56,141.52,7.06613906]
[1764320446095,6.10349819,141.56,141.52,7.06613906]
[1764320446260,6.10349819,141.56,141.48,35.3406635]
[1764320446468,0.28432314,141.54,141.5,5.10917505]
[1764320446865,0.71,141.53,141.5,5.10917505]
[1764320447081,0.71,141.53,141.48,35.3406635]
[1764320447383,0.71,141.53,141.5,5.10917505]
[1764320447770,0.71,141.53,141.49,5.10917505]
[1764320448282,0.28432314,141.52,141.48,7.06813683]
[1764320448587,3.18,141.51,141.5,5.10917505]
[1764320448886,3.18,141.51,141.47,16.308864]
[1764320448887,3.89,141.51,141.47,16.308864]
[1764320449091,3.89,141.51,141.37,0.1]
[1764320449092,6.10349819,141.5,141.45,12.1786946]
[1764320449385,5.39349819,141.48,141.39,36.04068279]
[1764320449596,5.39349819,141.48,141.43,21.41803905]
[1764320449792,0.28432314,141.46,141.4,24.75247524]
[1764320450086,5.81917505,141.47,141.43,5.10917505]
[1764320450087,0.71,141.47,141.43,5.10917505]
[1764320450390,0.28432314,141.45,141.43,5.10917505]
[1764320450680,0.71,141.46,141.44,5.10917505]
[1764320450889,3.18,141.45,141.44,5.10917505]
[1764320451384,3.89,141.45,141.43,5.10917505]
[1764320451568,0.71,141.44,141.42,7.07113562]
[1764320451963,0.99432314,141.44,141.41,16.308864]
[1764320452279,0.99432314,141.44,141.37,17.78291154]
[1764320452280,0.28432314,141.42,141.37,0.1]
[1764320452586,0.28432314,141.42,141.4,5.10917505]
[1764320452802,3.18,141.41,141.4,5.10917505]
[1764320452960,3.18,141.41,141.39,5.10917505]
[1764320453381,3.89,141.41,141.39,5.10917505]
[1764320453577,0.71,141.4,141.38,5.10917505]
[1764320454178,0.99432314,141.44,141.39,5.10917505]
[1764320454368,0.28432314,141.42,141.4,7.07180927]
[1764320454792,0.99432314,141.42,141.4,7.07180927]
[1764320455291,58.54322074,141.51,141.41,8.92387807]
[1764320455477,0.28432314,141.45,141.4,7.07180927]
[1764320455677,0.28432314,141.43,141.4,7.07180927]
[1764320456078,0.99432314,141.43,141.4,7.07180927]
[1764320456391,0.99432314,141.43,141.39,17.6808436]
[1764320456982,0.71,141.42,141.39,17.6808436]
[1764320457490,0.28432314,141.4,141.37,16.408864]
[1764320457666,0.28432314,141.38,141.37,0.1]
[1764320457866,9.20820121,141.38,141.37,0.1]
[1764320458183,0.99432314,141.38,141.37,0.1]
[1764320458369,4.17432314,141.38,141.37,0.1]
[1764320459683,0.28432314,141.37,141.34,7.07510697]
[1764320459884,0.28432314,141.37,141.33,16.408864]
[1764320459885,0.99432314,141.37,141.33,23.48441139]
[1764320460287,4.17432314,141.36,141.35,8.92387807]
[1764320460677,4.17432314,141.36,141.33,25.33274207]
[1764320460878,0.71,141.35,141.33,25.33274207]
[1764320461190,0.71,141.35,141.34,8.92387807]
[1764320461595,0.71,141.41,141.34,9.60387807]
[1764320461773,3.18,141.4,141.35,8.92387807]
[1764320462091,0.28432314,141.38,141.35,8.92387807]
[1764320462488,0.71,141.37,141.35,8.92387807]
[1764320463599,0.28432314,141.38,141.36,8.92387807]
[1764320463796,3.89,141.37,141.35,8.92387807]
[1764320463998,0.28432314,141.36,141.33,0.1]
[1764320464299,9.20820121,141.34,141.28,16.00198128]
[1764320464598,9.20820121,141.3,141.25,8.92387807]
[1764320464894,0.28432314,141.28,141.25,8.92387807]
[1764320465087,0.28432314,141.31,141.27,8.92387807]
[1764320465279,0.71,141.32,141.3,8.92387807]
[1764320465688,0.71,141.32,141.31,8.92387807]
[1764320465895,3.89,141.32,141.3,8.92387807]
[1764320466593,3.89,141.32,141.3,16.00092182]
[1764320466784,3.89,141.32,141.3,8.92387807]
[1764320466978,0.71,141.31,141.3,8.92387807]
[1764320467175,0.71,141.31,141.26,23.38752203]
[1764320467176,0.99432314,141.31,141.26,23.38752203]
[1764320467490,0.99432314,141.31,141.28,8.92387807]